fUST/lending_fUST_20250810
["ID","MTS","AMOUNT","RATE_DAILY","PERIOD"]
[378175422,1754764245802,-460.0,0.00023727,2]
[378175424,1754764245812,-697.62,0.00023727,2]
[378175425,1754764245821,-460.0,0.00023727,2]
[378175426,1754764245831,-460.0,0.00023727,2]
[378175427,1754764245840,-460.0,0.00023727,2]
[378175428,1754764245850,-460.0,0.00023731,2]
[378175429,1754764245859,-1788.92,0.00023742,2]
[378175430,1754764245869,-151.235729,0.0002375,3]
[378175431,1754764245879,-3229.92405368,0.00023755,2]
[378175432,1754764245889,-150.0,0.00023774,2]
[378175433,1754764245898,-4540.59641142,0.00023792,2]
[378175434,1754764245908,-438.79,0.00023853,2]
[378175435,1754764245917,-151.235729,0.00023866,2]
[378175436,1754764245926,-260.0,0.0002387,2]
[378175437,1754764245936,-4316.57566863,0.000239,2]
[378175438,1754764245946,-604.365477,0.00023959,2]
[378175440,1754764245956,-5930.57490471,0.00023971,2]
[378175441,1754764245965,-618.69,0.00023991,2]
[378175442,1754764245974,-949.02,0.00023991,2]
[378175443,1754764245984,-526.05,0.00023992,2]
[378175444,1754764245993,-1114.72,0.00023992,2]
[378175445,1754764246004,-1158.09,0.00023992,2]
[378175446,1754764246014,-460.0,0.00023992,2]
[378175447,1754764246023,-460.0,0.00023992,2]
[378175448,1754764246032,-460.0,0.00023992,2]
[378175449,1754764246041,-460.0,0.00023992,2]
[378175450,1754764246053,-460.0,0.00023992,2]
[378175451,1754764246063,-460.0,0.00023992,2]
[378175452,1754764246072,-959.35,0.00023992,2]
[378175453,1754764246082,-564.43,0.00023992,2]
[378175454,1754764246091,-593.0,0.00023992,2]
[378175455,1754764246100,-229.0,0.00023992,2]
[378175456,1754764246109,-460.0,0.00023992,2]
[378175458,1754764246119,-769.28,0.00023992,2]
[378175459,1754764246128,-460.0,0.00023993,2]
[378175460,1754764246137,-460.0,0.00023993,2]
[378175461,1754764246146,-673.56,0.00023993,2]
[378175462,1754764246156,-757.76,0.00023993,2]
[378175463,1754764246165,-971.97,0.00023993,2]
[378175464,1754764246175,-460.0,0.00023993,2]
[378175465,1754764246184,-8328.09296719,0.00024,2]
[378175466,1754764246193,-460.0,0.00024001,2]
[378175467,1754764246202,-2306.42,0.00024001,2]
[378175468,1754764246211,-910.57,0.00024001,2]
[378175469,1754764246221,-602.66,0.00024001,2]
[378175470,1754764246231,-691.0,0.00024001,2]
[378175471,1754764246240,-460.0,0.00024001,2]
[378175472,1754764246249,-697.62,0.00024001,2]
[378175473,1754764246259,-460.0,0.00024001,2]
[378175474,1754764246268,-460.0,0.00024001,2]
[378175475,1754764246277,-460.0,0.00024001,2]
[378175476,1754764246286,-342.988634,0.00024005,7]
[378175477,1754764246296,-342.988634,0.00024005,7]
[378175478,1754764246305,-151.0,0.00024005,7]
[378175479,1754764246314,-458.13737386,0.00024005,2]
[378175480,1754764246324,-151.0,0.00024005,7]
[378175481,1754764246333,-1088.628,0.00024011,2]
[378175482,1754764246342,-2000.0,0.00024011,2]
[378175483,1754764246351,-151.0,0.00024018,7]
[378175484,1754764246361,-151.0,0.00024018,7]
[378175485,1754764246370,-1060.00748192,0.00024025,2]
[378175486,1754764246380,-151.0,0.00024079,2]
[378175487,1754764246390,-200.0,0.00024097,15]
[378175488,1754764246399,-200.0,0.00024097,15]
[378175489,1754764246409,-200.0,0.00024097,15]
[378175490,1754764246418,-200.0,0.00024097,15]
[378175491,1754764246428,-200.0,0.00024097,15]
[378175492,1754764246437,-200.0,0.00024097,15]
[378175493,1754764246446,-200.0,0.00024097,15]
[378175494,1754764246455,-1052.13338448,0.00024143,2]
[378175495,1754764246465,-500.0,0.00024146,2]
[378175496,1754764246474,-7505.88386377,0.0002415,2]
[378175497,1754764246484,-243.37969701,0.00024152,2]
[378175498,1754764246493,-292.51,0.000242,2]
[378175499,1754764246502,-151.235729,0.00024223,3]
[378175500,1754764246511,-662.502,0.00024229,6]
[378175501,1754764246521,-179.13042368,0.00024229,6]
[378175502,1754764246530,-618.69,0.00024265,2]
[378175503,1754764246539,-949.02,0.00024265,2]
[378175504,1754764246548,-526.05,0.00024266,2]
[378175505,1754764246558,-1114.72,0.00024266,2]
[378175506,1754764246567,-1158.09,0.00024266,2]
[378175507,1754764246576,-460.0,0.00024266,2]
[378175508,1754764246585,-460.0,0.00024266,2]
[378175509,1754764246595,-460.0,0.00024266,2]
[378175510,1754764246604,-460.0,0.00024266,2]
[378175511,1754764246614,-460.0,0.00024266,2]
[378175512,1754764246623,-460.0,0.00024266,2]
[378175513,1754764246632,-959.35,0.00024266,2]
[378175514,1754764246641,-593.0,0.00024266,2]
[378175515,1754764246650,-460.0,0.00024266,2]
[378175516,1754764246660,-769.28,0.00024266,2]
[378175517,1754764246669,-460.0,0.00024267,2]
[378175518,1754764246679,-460.0,0.00024267,2]
[378175519,1754764246688,-673.56,0.00024267,2]
[378175520,1754764246697,-757.76,0.00024267,2]
[378175521,1754764246707,-971.97,0.00024267,2]
[378175522,1754764246717,-460.0,0.00024267,2]
[378175523,1754764246726,-460.0,0.00024275,2]
[378175524,1754764246735,-2306.42,0.00024275,2]
[378175525,1754764246744,-910.57,0.00024275,2]
[378175526,1754764246753,-602.66,0.00024275,2]
[378175527,1754764246763,-691.0,0.00024275,2]
[378175528,1754764246772,-460.0,0.00024275,2]
[378175529,1754764246781,-697.62,0.00024275,2]
[378175530,1754764246792,-460.0,0.00024275,2]
[378175531,1754764246803,-460.0,0.00024275,2]
[378175532,1754764246812,-460.0,0.00024275,2]
[378175533,1754764246821,-151.0,0.000243,5]
[378175534,1754764246831,-9266.52328861,0.00024329,2]
[378175535,1754764246841,-360.0,0.00024418,2]
[378175536,1754764246850,-151.235729,0.0002443,2]
[378175537,1754764246859,-151.235729,0.00024455,15]
[378175538,1754764246869,-285.0,0.00024461,2]
[378175539,1754764246878,-150.0,0.00024473,2]
[378175540,1754764246887,-500.0,0.00024473,2]
[378175541,1754764246900,-500.0,0.00024473,2]
[378175542,1754764246910,-155.2313519,0.00024473,2]
[378175543,1754764246919,-500.0,0.00024473,2]
[378175544,1754764246929,-500.0,0.00024473,2]
[378175545,1754764246938,-500.0,0.00024473,2]
[378175546,1754764246947,-500.0,0.00024473,2]
[378175547,1754764246957,-500.0,0.00024473,2]
[378175548,1754764246966,-500.0,0.00024473,2]
[378175549,1754764246975,-500.0,0.00024473,2]
[378175550,1754764246984,-500.0,0.00024473,2]
[378175551,1754764246994,-500.0,0.00024473,2]
[378175552,1754764247003,-160.01729465,0.00024473,2]
[378175553,1754764247012,-500.0,0.00024473,2]
[378175554,1754764247021,-1357.01,0.000245,2]
[378175555,1754764247031,-342.988634,0.000245,7]
[378175556,1754764247040,-342.988634,0.000245,7]
[378175557,1754764247050,-151.0,0.000245,7]
[378175558,1754764247060,-152.198389,0.000245,7]
[378175559,1754764247069,-100285.78434287,0.000245,2]
[378175560,1754764247198,-366.65693215,0.000245,2]
[378175561,1754764247556,-151.0,0.0002271,2]
[378175562,1754764247565,-500.0,0.0002271,2]
[378175563,1754764247575,-500.0,0.0002271,2]
[378175564,1754764247584,-5202.55,0.000245,2]
[378175565,1754764247596,-20399.95405924,0.000245,2]
[378175566,1754764247644,-460.0,0.00021525,2]
[378175567,1754764247655,-500.0,0.0002271,2]
[378175568,1754764247664,-500.0,0.0002271,2]
[378175569,1754764247673,-500.0,0.0002271,2]
[378175570,1754764247683,-43875.66855827,0.000245,2]
[378175571,1754764258270,319.7498031,0.00021435,2]
[378175572,1754764282064,5000.0,0.00027908,30]
[378175573,1754764282791,5000.0,0.00027908,30]
[378175574,1754764283333,5000.0,0.00027908,30]
[378175575,1754764284062,5000.0,0.00027908,30]
[378175576,1754764284678,5000.0,0.00027908,30]
[378175577,1754764285230,5000.0,0.00027908,30]
[378175578,1754764286522,5000.0,0.00027908,30]
[378175579,1754764287270,5000.0,0.00027908,30]
[378175580,1754764288206,5000.0,0.00027908,30]
[378175581,1754764289180,5000.0,0.00027908,30]
[378175582,1754764290038,5000.0,0.00027908,30]
[378175583,1754764290743,5000.0,0.00027908,30]
[378175584,1754764291312,4132.16,0.00027908,30]
[378175585,1754764301766,10016.01006053,0.000199,2]
[378175586,1754764301963,150.0,0.00023699,30]
[378175588,1754764345741,1000.0,0.00020941,2]
[378175591,1754764484500,9682.14305858,0.000199,2]
[378175592,1754764541932,5000.0,0.00019178,2]
[378175593,1754764592807,150.0,0.00023382,30]
[378175594,1754764594113,1590.811977,0.00020727,2]
[378175596,1754764654422,199.8323709,0.00020741,2]
[378175597,1754764669399,9953.37816621,0.000199,2]
[378175598,1754764723935,3255.97748589,0.00019178,2]
[378175599,1754764723957,1744.02251411,0.00019178,2]
[378175600,1754764790128,178.49706421,0.00020879,2]
[378175602,1754764870974,10084.49759727,0.000199,2]
[378175604,1754764915752,7992.98282441,0.00020535,2]
[378175605,1754764915777,16907.01717559,0.00020535,2]
[378175606,1754764965526,195.92608958,0.00021281,2]
[378175607,1754765017602,150.0,0.00023077,30]
[378175608,1754765018019,150.0,0.00024176,30]
[378175609,1754765018426,150.0,0.00025275,30]
[378175610,1754765018831,150.0,0.00026374,30]
[378175611,1754765019251,168.98,0.00027473,30]
[378175612,1754765041170,2897.05673483,0.00020596,2]
[378175613,1754765041192,7102.94326517,0.00020596,2]
[378175617,1754765056221,10463.10487531,0.000199,2]
[378175618,1754765074163,207.35775175,0.00021512,2]
[378175619,1754765086586,1208.63599293,0.00021512,2]
[378175620,1754765092080,197.11060277,0.00020879,2]
[378175621,1754765094240,820.84751207,0.00021425,2]
[378175622,1754765094264,38.18414949,0.00021425,2]
[378175623,1754765096580,150.0,0.00022983,30]
[378175624,1754765096976,150.0,0.00024077,30]
[378175625,1754765097388,150.0,0.00025172,30]
[378175626,1754765097786,150.0,0.00026266,30]
[378175627,1754765098191,169.7,0.00027361,30]
[378175629,1754765157821,559.576027,0.0002053,2]
[378175630,1754765178913,150.0,0.00022875,30]
[378175631,1754765179337,150.0,0.00023965,30]
[378175633,1754765180278,150.0,0.00025054,30]
[378175634,1754765180681,150.0,0.00026143,30]
[378175636,1754765183222,170.05,0.00027233,30]
[378175644,1754765215306,790.216095,0.00013699,2]
[378175645,1754765215526,790.216095,0.00020187,2]
[378175647,1754765242491,666.0,0.0002053,2]
[378175648,1754765244869,10399.41274968,0.000199,2]
[378175649,1754765262567,150.0,0.00022866,30]
[378175650,1754765263012,150.0,0.00023955,30]
[378175651,1754765263417,150.0,0.00025044,30]
[378175652,1754765263820,150.0,0.00026133,30]
[378175653,1754765264246,170.04,0.00027222,30]
[378175654,1754765268033,5000.0,0.00019178,2]
[378175655,1754765273369,1756.39488383,0.000189,2]
[378175656,1754765273392,1350.9355509,0.000189,2]
[378175657,1754765299671,860.98018951,0.00021425,2]
[378175658,1754765341709,150.0,0.00023547,30]
[378175659,1754765342109,150.0,0.00024669,30]
[378175660,1754765342537,150.0,0.0002579,30]
[378175661,1754765342945,150.0,0.00026911,30]
[378175667,1754765386388,604.31799647,0.00021512,2]
[378175670,1754765420861,150.0,0.00022891,30]
[378175671,1754765421253,150.0,0.00023982,30]
[378175672,1754765421669,150.0,0.00025072,30]
[378175673,1754765422062,150.0,0.00026162,30]
[378175675,1754765422526,173.63,0.00027252,30]
[378175676,1754765428396,10262.80676128,0.000199,2]
[378175694,1754765432670,-1200.0,0.00021523,2]
[378175695,1754765432679,-1200.0,0.00021523,2]
[378175696,1754765432689,-524.33,0.00021524,2]
[378175697,1754765432698,-460.0,0.00021524,2]
[378175698,1754765432707,-460.0,0.00021524,2]
[378175699,1754765432717,-926.54,0.00021524,2]
[378175700,1754765432726,-521.94,0.00021524,2]
[378175701,1754765432736,-460.0,0.00021524,2]
[378175702,1754765432745,-460.0,0.00021524,2]
[378175703,1754765432754,-460.0,0.00021524,2]
[378175704,1754765432764,-460.0,0.00021524,2]
[378175705,1754765432774,-460.0,0.00021524,2]
[378175706,1754765432784,-460.0,0.00021524,2]
[378175707,1754765432793,-460.0,0.00021524,2]
[378175708,1754765432802,-999.3,0.00021524,2]
[378175709,1754765432812,-1170.3,0.00021524,2]
[378175710,1754765432822,-460.0,0.00021524,2]
[378175711,1754765432831,-460.0,0.00021524,2]
[378175712,1754765432840,-460.0,0.00021524,2]
[378175713,1754765432850,-460.0,0.00021524,2]
[378175714,1754765432861,-460.0,0.00021524,2]
[378175715,1754765432870,-540.95,0.00021524,2]
[378175716,1754765432880,-460.0,0.00021524,2]
[378175717,1754765432889,-460.0,0.00021524,2]
[378175718,1754765432898,-460.0,0.00021524,2]
[378175719,1754765432907,-460.0,0.00021524,2]
[378175720,1754765432917,-460.0,0.00021524,2]
[378175721,1754765432926,-460.0,0.00021524,2]
[378175722,1754765432936,-460.0,0.00021524,2]
[378175723,1754765432945,-889.24,0.00021524,2]
[378175724,1754765432954,-460.0,0.00021524,2]
[378175725,1754765432964,-460.0,0.00021524,2]
[378175726,1754765432973,-460.0,0.00021524,2]
[378175727,1754765433133,-460.0,0.00021524,2]
[378175728,1754765433152,-460.0,0.00021524,2]
[378175729,1754765433162,-460.0,0.00021524,2]
[378175730,1754765433172,-460.0,0.00021524,2]
[378175731,1754765433186,-460.0,0.00021524,2]
[378175732,1754765433198,-641.07,0.00021524,2]
[378175733,1754765433208,-467.09929999,0.00021524,2]
[378175734,1754765433219,-160.0,0.00021525,2]
[378175735,1754765433228,-500.0,0.00021525,2]
[378175736,1754765433237,-500.0,0.00021525,2]
[378175737,1754765433247,-460.0,0.00021525,2]
[378175738,1754765433256,-460.0,0.00021525,2]
[378175739,1754765433267,-460.0,0.00021525,2]
[378175740,1754765433276,-347.37202429,0.00021525,2]
[378175741,1754765433286,-460.0,0.00021525,2]
[378175742,1754765433296,-317.13755454,0.00021525,2]
[378175743,1754765433332,-142.86244546,0.00021525,2]
[378175744,1754765433341,-324.23685453,0.00021525,2]
[378175759,1754765438583,-460.0,0.00021524,2]
[378175760,1754765438592,-460.0,0.00021524,2]
[378175761,1754765438602,-135.76314547,0.00021525,2]
[378175762,1754765438612,-460.0,0.00021525,2]
[378175763,1754765438624,-460.0,0.00021525,2]
[378175764,1754765438641,-460.0,0.00021525,2]
[378175765,1754765438654,-460.0,0.00021525,2]
[378175766,1754765438664,-460.0,0.00021525,2]
[378175767,1754765438673,-460.0,0.00021525,2]
[378175768,1754765438683,-460.0,0.00021525,2]
[378175769,1754765438693,-460.0,0.00021525,2]
[378175770,1754765438702,-460.0,0.00021525,2]
[378175771,1754765438711,-460.0,0.00021525,2]
[378175772,1754765438722,-460.0,0.00021525,2]
[378175773,1754765438731,-460.0,0.00021525,2]
[378175774,1754765438740,-460.0,0.00021525,2]
[378175775,1754765438749,-460.0,0.00021525,2]
[378175776,1754765438758,-460.0,0.00021525,2]
[378175777,1754765438768,-460.0,0.00021525,2]
[378175778,1754765438777,-460.0,0.00021525,2]
[378175779,1754765438787,-460.0,0.00021525,2]
[378175780,1754765438796,-460.0,0.00021525,2]
[378175781,1754765438805,-460.0,0.00021525,2]
[378175782,1754765438814,-460.0,0.00021525,2]
[378175783,1754765438823,-460.0,0.00021525,2]
[378175784,1754765438833,-460.0,0.00021525,2]
[378175785,1754765438842,-460.0,0.00021525,2]
[378175786,1754765438850,-460.0,0.00021525,2]
[378175787,1754765438859,-460.0,0.00021525,2]
[378175788,1754765438868,-460.0,0.00021525,2]
[378175789,1754765438877,-460.0,0.00021525,2]
[378175790,1754765438886,-460.0,0.00021525,2]
[378175791,1754765438897,-460.0,0.00021525,2]
[378175792,1754765438906,-460.0,0.00021525,2]
[378175793,1754765438915,-460.0,0.00021525,2]
[378175794,1754765438924,-460.0,0.00021525,2]
[378175795,1754765438934,-460.0,0.00021525,2]
[378175796,1754765438943,-460.0,0.00021525,2]
[378175797,1754765438954,-460.0,0.00021525,2]
[378175798,1754765438967,-460.0,0.00021525,2]
[378175799,1754765438980,-699.71,0.00021525,2]
[378175800,1754765438992,-460.0,0.00021525,2]
[378175801,1754765439005,-460.0,0.00021525,2]
[378175802,1754765439016,-460.0,0.00021525,2]
[378175803,1754765439026,-460.0,0.00021525,2]
[378175804,1754765439037,-460.0,0.00021525,2]
[378175805,1754765439050,-460.0,0.00021525,2]
[378175806,1754765439061,-460.0,0.00021525,2]
[378175807,1754765439072,-700.64,0.00021525,2]
[378175808,1754765439084,-460.0,0.00021525,2]
[378175809,1754765439096,-460.0,0.00021525,2]
[378175810,1754765439108,-238.49418204,0.00021525,2]
[378175811,1754765439120,-460.0,0.00021525,2]
[378175812,1754765439131,-462.23222812,0.00021525,2]
[378175813,1754765439143,-460.0,0.00021525,2]
[378175814,1754765439156,-460.0,0.00021525,2]
[378175815,1754765439169,-460.0,0.00021525,2]
[378175816,1754765439181,-460.0,0.00021525,2]
[378175817,1754765439194,-460.0,0.00021525,2]
[378175818,1754765439205,-460.0,0.00021525,2]
[378175819,1754765439217,-460.0,0.00021525,2]
[378175820,1754765439229,-460.0,0.00021525,2]
[378175821,1754765439240,-460.0,0.00021525,2]
[378175822,1754765439251,-460.0,0.00021525,2]
[378175823,1754765439263,-460.0,0.00021525,2]
[378175824,1754765439275,-460.0,0.00021525,2]
[378175825,1754765439286,-460.0,0.00021525,2]
[378175826,1754765439297,-460.0,0.00021525,2]
[378175827,1754765439307,-460.0,0.00021525,2]
[378175828,1754765439317,-460.0,0.00021525,2]
[378175829,1754765439327,-460.0,0.00021525,2]
[378175830,1754765439339,-460.0,0.00021525,2]
[378175831,1754765439350,-460.0,0.00021525,2]
[378175832,1754765439360,-460.0,0.00021525,2]
[378175833,1754765439372,-960.7,0.00021525,2]
[378175834,1754765439383,-460.0,0.00021525,2]
[378175835,1754765439395,-460.0,0.00021525,2]
[378175836,1754765439407,-321.93963408,0.00021525,2]
[378175837,1754765439419,-460.0,0.00021525,2]
[378175838,1754765439431,-460.0,0.00021525,2]
[378175839,1754765439442,-460.0,0.00021525,2]
[378175840,1754765439454,-546.75,0.00021525,2]
[378175841,1754765439466,-604.86,0.00021525,2]
[378175842,1754765439476,-460.0,0.00021525,2]
[378175843,1754765439486,-500.0,0.00021525,2]
[378175844,1754765439497,-460.0,0.00021525,2]
[378175845,1754765439507,-460.0,0.00021525,2]
[378175846,1754765439517,-460.0,0.00021525,2]
[378175847,1754765439529,-460.0,0.00021525,2]
[378175848,1754765439541,-460.0,0.00021525,2]
[378175849,1754765439553,-460.0,0.00021525,2]
[378175850,1754765439566,-460.0,0.00021526,2]
[378175851,1754765439576,-460.0,0.00021526,2]
[378175852,1754765439586,-253.18740003,0.00021526,2]
[378175853,1754765439598,-460.0,0.00021526,2]
[378175854,1754765439608,-460.0,0.00021526,2]
[378175855,1754765439626,-460.0,0.00021526,2]
[378175856,1754765439638,-460.0,0.00021533,2]
[378175857,1754765439649,-2260.15,0.00021533,2]
[378175858,1754765439659,-530.89,0.00021533,2]
[378175859,1754765439670,-693.0,0.00021533,2]
[378175860,1754765439680,-460.0,0.00021533,2]
[378175861,1754765439690,-460.0,0.00021533,2]
[378175862,1754765439701,-507.53893718,0.00021534,2]
[378175863,1754765439712,-500.0,0.00021535,2]
[378175864,1754765439723,-155.68672432,0.00021654,2]
[378175865,1754765439735,-759.27,0.00021654,2]
[378175866,1754765439748,-475.55,0.00021654,2]
[378175867,1754765439761,-704.59,0.00021654,2]
[378175868,1754765439777,-460.0,0.00021654,2]
[378175869,1754765439787,-10262.80676101,0.00021655,2]
[378175870,1754765439798,-179.63,0.00021789,10]
[378175871,1754765439808,-926.54,0.00021798,2]
[378175872,1754765439820,-521.94,0.00021798,2]
[378175873,1754765439831,-460.0,0.00021798,2]
[378175874,1754765439842,-460.0,0.00021798,2]
[378175875,1754765439853,-999.3,0.00021798,2]
[378175876,1754765439863,-1170.3,0.00021798,2]
[378175877,1754765439874,-460.0,0.00021798,2]
[378175878,1754765439884,-460.0,0.00021798,2]
[378175879,1754765439895,-460.0,0.00021798,2]
[378175880,1754765439910,-540.95,0.00021798,2]
[378175881,1754765439921,-460.0,0.00021798,2]
[378175882,1754765439931,-460.0,0.00021798,2]
[378175884,1754765439942,-889.24,0.00021798,2]
[378175886,1754765439953,-460.0,0.00021798,2]
[378175888,1754765439964,-460.0,0.00021798,2]
[378175892,1754765439975,-460.0,0.00021798,2]
[378175894,1754765439986,-641.07,0.00021798,2]
[378175896,1754765439996,-460.0,0.00021799,2]
[378175898,1754765440007,-460.0,0.00021799,2]
[378175900,1754765440017,-460.0,0.00021799,2]
[378175902,1754765440028,-460.0,0.00021799,2]
[378175904,1754765440038,-460.0,0.00021799,2]
[378175906,1754765440050,-460.0,0.00021799,2]
[378175909,1754765440061,-460.0,0.00021799,2]
[378175912,1754765440072,-699.71,0.00021799,2]
[378175916,1754765440083,-249.21,0.00021799,2]
[378175919,1754765440094,-460.0,0.00021799,2]
[378175922,1754765440105,-460.0,0.00021799,2]
[378175926,1754765440118,-285.96,0.00021799,2]
[378175929,1754765440129,-700.64,0.00021799,2]
[378175932,1754765440140,-460.0,0.00021799,2]
[378175936,1754765440151,-460.0,0.00021799,2]
[378175939,1754765440161,-460.0,0.00021799,2]
[378175942,1754765440171,-460.0,0.00021799,2]
[378175945,1754765440183,-460.0,0.00021799,2]
[378175949,1754765440197,-460.0,0.00021799,2]
[378175953,1754765440208,-460.0,0.00021799,2]
[378175956,1754765440219,-460.0,0.00021799,2]
[378175959,1754765440231,-960.7,0.00021799,2]
[378175962,1754765440241,-460.0,0.00021799,2]
[378175965,1754765440252,-560.12922238,0.00021799,2]
[378175968,1754765440263,-546.75,0.00021799,2]
[378175971,1754765440273,-460.0,0.00021799,2]
[378175973,1754765440284,-460.0,0.00021799,2]
[378175976,1754765440295,-2260.15,0.00021807,2]
[378175978,1754765440305,-530.89,0.00021807,2]
[378175980,1754765440315,-693.0,0.00021807,2]
[378175982,1754765440326,-460.0,0.00021807,2]
[378175984,1754765440337,-460.0,0.00021807,2]
[378175986,1754765440347,-578.58489178,0.00021917,2]
[378175988,1754765440358,-1644.08,0.00021927,2]
[378175989,1754765440368,-759.27,0.00021928,2]
[378175990,1754765440378,-704.59,0.00021928,2]
[378175992,1754765440389,-460.0,0.00021928,2]
[378175993,1754765440400,-200.0,0.00021953,15]
[378175994,1754765440410,-200.0,0.00021953,15]
[378175995,1754765440421,-200.0,0.00021953,15]
[378175996,1754765440432,-200.0,0.00021953,15]
[378175997,1754765440443,-200.0,0.00021953,15]
[378175998,1754765440453,-5000.0,0.00021997,2]
[378175999,1754765440463,-926.54,0.00022072,2]
[378176000,1754765440475,-521.94,0.00022072,2]
[378176001,1754765440486,-460.0,0.00022072,2]
[378176002,1754765440496,-999.3,0.00022072,2]
[378176003,1754765440505,-1170.3,0.00022072,2]
[378176004,1754765440515,-460.0,0.00022072,2]
[378176005,1754765440524,-410.18,0.00022072,2]
[378176006,1754765440534,-540.95,0.00022072,2]
[378176007,1754765440543,-460.0,0.00022072,2]
[378176008,1754765440552,-460.0,0.00022072,2]
[378176010,1754765440562,-889.24,0.00022072,2]
[378176011,1754765440571,-460.0,0.00022072,2]
[378176012,1754765440580,-460.0,0.00022072,2]
[378176013,1754765440589,-641.07,0.00022072,2]
[378176014,1754765440786,-460.0,0.00022073,2]
[378176015,1754765440801,-460.0,0.00022073,2]
[378176016,1754765440810,-460.0,0.00022073,2]
[378176017,1754765440819,-445.81,0.00022073,2]
[378176018,1754765440829,-460.0,0.00022073,2]
[378176019,1754765440839,-460.0,0.00022073,2]
[378176020,1754765440849,-460.0,0.00022073,2]
[378176021,1754765440859,-699.71,0.00022073,2]
[378176022,1754765440870,-460.0,0.00022073,2]
[378176023,1754765440880,-460.0,0.00022073,2]
[378176024,1754765440889,-700.64,0.00022073,2]
[378176025,1754765440898,-331.12286207,0.00022073,2]
[378176026,1754765440908,-211.91825168,0.00022073,2]
[378176027,1754765440917,-460.0,0.00022073,2]
[378176028,1754765440927,-460.0,0.00022073,2]
[378176029,1754765440936,-460.0,0.00022073,2]
[378176030,1754765440946,-460.0,0.00022073,2]
[378176031,1754765440955,-460.0,0.00022073,2]
[378176032,1754765440964,-960.7,0.00022073,2]
[378176033,1754765440974,-546.75,0.00022073,2]
[378176034,1754765440984,-460.0,0.00022073,2]
[378176035,1754765440993,-460.0,0.00022073,2]
[378176036,1754765441002,-231.45466446,0.00022079,2]
[378176037,1754765441011,-2260.15,0.00022081,2]
[378176038,1754765441021,-530.89,0.00022081,2]
[378176039,1754765441030,-693.0,0.00022081,2]
[378176040,1754765441039,-460.0,0.00022081,2]
[378176041,1754765441048,-460.0,0.00022081,2]
[378176042,1754765441058,-155.49476175,0.00022178,2]
[378176043,1754765441067,-759.27,0.00022202,2]
[378176044,1754765441076,-704.59,0.00022202,2]
[378176045,1754765441086,-460.0,0.00022202,2]
[378176046,1754765441095,-500.0,0.00022239,2]
[378176047,1754765441104,-500.0,0.00022239,2]
[378176048,1754765441114,-4404.2748889,0.00022247,2]
[378176049,1754765441123,-500.0,0.00022265,2]
[378176050,1754765441134,-500.0,0.00022286,2]
[378176051,1754765441143,-500.0,0.00022286,2]
[378176052,1754765441154,-491.36391457,0.00022286,2]